fUSD/lending_fUSD_20250106
["ID","MTS","AMOUNT","RATE_DAILY","PERIOD"]
[347847595,1736154645402,-925.38,0.00010999,2]
[347847596,1736154645411,-37224.06789317,0.00010999,3]
[347847597,1736154645422,-19871.3794886,0.00010999,3]
[347847598,1736154645463,-162.30970547,0.00010999,3]
[347847599,1736154645474,-1256.74719578,0.00010999,3]
[347847600,1736154645492,-1201.89788993,0.00010999,3]
[347847601,1736154645557,-935183.05382158,0.00010999,3]
[347847602,1736154645665,-1688.69009499,0.00010999,3]
[347847603,1736154645723,-4776.633,0.00010999,3]
[347847604,1736154645783,-1000.0,0.00010999,3]
[347847635,1736155831581,-425.97,8.219e-05,2]
[347847636,1736155831590,-186.33,9.859e-05,2]
[347847637,1736155831599,-150.0,9.888e-05,2]
[347847638,1736155831609,-150.0,9.888e-05,2]
[347847639,1736155831618,-250.0,9.923e-05,2]
[347847640,1736155831627,-1000.0,9.929e-05,2]
[347847641,1736155831636,-274.03,9.954e-05,2]
[347847642,1736155831645,-1966.66875442,9.955e-05,2]
[347847643,1736155831748,-1409.25229469,9.955e-05,2]
[347847644,1736155831809,-897.90109059,9.955e-05,2]
[347847645,1736155831819,-3073.52293046,0.0001,2]
[347847646,1736155831828,-641.04613815,0.0001,2]
[347847647,1736155831838,-4103.36,0.00010106,2]
[347847648,1736155831847,-632.2,0.00010137,2]
[347847649,1736155831857,-531.85,0.0001017,2]
[347847650,1736155831867,-175.71,0.00010229,2]
[347847651,1736155831877,-425.97,0.00010479,2]
[347847652,1736155831886,-5000.0,0.00010898,2]
[347847653,1736155831896,-150.0,0.00010899,2]
[347847654,1736155831906,-4574.0856,0.00010899,2]
[347847655,1736155831915,-2133.66747039,0.000109,2]
[347847656,1736155831927,-17171.18242961,0.000109,2]
[347847657,1736155831936,-349.55613445,0.000109,2]
[347847658,1736155831946,-281.22728208,0.000109,2]
[347847659,1736155831955,-281.22728201,0.000109,2]
[347847660,1736155831964,-281.22728201,0.000109,2]
[347847661,1736155831973,-194.89796522,0.000109,2]
[347847662,1736155831983,-281.22728201,0.000109,2]
[347847663,1736155831992,-7543.42299922,0.000109,2]
[347847664,1736155832001,-358.43809552,0.000109,2]
[347847665,1736155832011,-281.22728201,0.000109,2]
[347847666,1736155832020,-281.22728201,0.000109,2]
[347847667,1736155832029,-281.22728201,0.000109,2]
[347847668,1736155832038,-281.22728201,0.000109,2]
[347847669,1736155832047,-15143.48124983,0.000109,2]
[347847670,1736155832059,-311.34125143,0.000109,2]
[347847671,1736155832072,-809.10534744,0.000109,2]
[347847672,1736155832085,-320.29041264,0.000109,2]
[347847673,1736155832096,-1371.73618872,0.000109,2]
[347847674,1736155832120,-83017.04805921,0.000109,2]
[347847675,1736155832129,-762.47050645,0.000109,2]
[347847676,1736155832139,-349.55613444,0.00010908,2]
[347847677,1736155832150,-349.55613444,0.00010917,2]
[347847678,1736155832160,-349.55613444,0.00010925,2]
[347847680,1736155832170,-349.55613444,0.00010933,2]
[347847681,1736155832179,-349.55613444,0.00010942,2]
[347847683,1736155832189,-349.55613444,0.0001095,2]
[347847685,1736155832199,-499.31726211,0.00010973,2]
[347847687,1736155832208,-306.05379202,0.00010973,2]
[347847689,1736155832218,-516.78038566,0.00010973,2]
[347847691,1736155832228,-500.0,0.00010973,2]
[347847693,1736155832237,-161.65874584,0.00010973,2]
[347847695,1736155832247,-500.0,0.00010973,2]
[347847697,1736155832257,-159.68725139,0.00010973,2]
[347847698,1736155832267,-500.90042106,0.00010973,2]
[347847699,1736155832277,-400.0,0.00010986,2]
[347847700,1736155832290,-500.0,0.00010996,2]
[347847701,1736155832299,-500.0,0.00010996,2]
[347847702,1736155832309,-500.0,0.00010996,2]
[347847703,1736155832319,-1145.8,0.00010996,2]
[347847704,1736155832328,-500.0,0.00010996,2]
[347847705,1736155832338,-1794.45,0.00010996,2]
[347847706,1736155832347,-649.72,0.00010996,2]
[347847707,1736155832357,-441.342302,0.00010996,2]
[347847708,1736155832367,-500.0,0.00010996,2]
[347847709,1736155832376,-507.47,0.00010996,2]
[347847710,1736155832386,-1401.92,0.00010996,2]
[347847711,1736155832396,-500.0,0.00010996,2]
[347847712,1736155832406,-240.82738091,0.00010996,2]
[347847713,1736155832415,-774.45,0.00010996,2]
[347847714,1736155832425,-882.43,0.00010996,2]
[347847715,1736155832435,-500.0,0.00010996,2]
[347847716,1736155832444,-1539.62,0.00010996,2]
[347847717,1736155832453,-814.85,0.00010996,2]
[347847718,1736155832463,-500.0,0.00010996,2]
[347847719,1736155832472,-410.66169967,0.00010996,2]
[347847722,1736155837479,-89.33830033,0.00010996,2]
[347847723,1736155837488,-178.9422537,0.00010996,2]
[347847724,1736155837592,-321.0577463,0.00010996,2]
[347847725,1736155837602,-500.0,0.00010996,2]
[347847726,1736155837611,-218.53125463,0.00010996,2]
[347847727,1736155837623,-281.46874537,0.00010996,2]
[347847728,1736155837633,-500.0,0.00010996,2]
[347847729,1736155837643,-500.0,0.00010996,2]
[347847730,1736155837652,-758.62,0.00010996,2]
[347847731,1736155837661,-767.57,0.00010996,2]
[347847732,1736155837671,-500.0,0.00010996,2]
[347847733,1736155837680,-500.0,0.00010996,2]
[347847734,1736155837689,-500.0,0.00010996,2]
[347847735,1736155837698,-802.79,0.00010996,2]
[347847736,1736155837707,-500.0,0.00010996,2]
[347847737,1736155837716,-500.0,0.00010996,2]
[347847738,1736155837725,-500.0,0.00010996,2]
[347847739,1736155837734,-947.89,0.00010996,2]
[347847740,1736155837743,-500.0,0.00010996,2]
[347847741,1736155837752,-500.0,0.00010996,2]
[347847742,1736155837761,-500.0,0.00010996,2]
[347847743,1736155837771,-500.0,0.00010996,2]
[347847744,1736155837780,-1750.37,0.00010996,2]
[347847745,1736155837791,-3367.32,0.00010996,2]
[347847746,1736155837801,-500.0,0.00010996,2]
[347847747,1736155837810,-1234.54,0.00010996,2]
[347847748,1736155837820,-40305.08812872,0.00010997,2]
[347847749,1736155837829,-500.0,0.00010997,2]
[347847750,1736155837837,-500.0,0.00010997,2]
[347847751,1736155837845,-500.0,0.00010997,2]
[347847752,1736155837855,-500.0,0.00010997,2]
[347847753,1736155837863,-270.00903447,0.00010997,2]
[347847754,1736155837873,-500.0,0.00010997,2]
[347847755,1736155837882,-500.0,0.00010997,2]
[347847756,1736155837891,-500.0,0.00010997,2]
[347847757,1736155837900,-500.0,0.00010997,2]
[347847758,1736155837909,-500.0,0.00010997,2]
[347847759,1736155837918,-361.10645139,0.00010997,2]
[347847760,1736155837927,-13.14440531,0.00010997,2]
[347847762,1736155837952,-486.85559469,0.00010997,2]
[347847764,1736155837961,-500.0,0.00010997,2]
[347847765,1736155837970,-500.0,0.00010997,2]
[347847766,1736155837980,-500.0,0.00010997,2]
[347847767,1736155837989,-500.0,0.00010997,2]
[347847768,1736155837997,-500.0,0.00010997,2]
[347847769,1736155838007,-500.0,0.00010997,2]
[347847770,1736155838016,-500.0,0.00010997,2]
[347847771,1736155838025,-500.0,0.00010997,2]
[347847772,1736155838035,-500.0,0.00010997,2]
[347847773,1736155838044,-500.0,0.00010997,2]
[347847774,1736155838053,-500.0,0.00010997,2]
[347847775,1736155838062,-500.0,0.00010997,2]
[347847776,1736155838072,-500.0,0.00010997,2]
[347847777,1736155838084,-500.0,0.00010997,2]
[347847779,1736155838093,-500.0,0.00010997,2]
[347847781,1736155838106,-500.0,0.00010997,2]
[347847784,1736155838120,-500.0,0.00010997,2]
[347847786,1736155838132,-330.14440531,0.00010997,2]
[347847789,1736155838145,-169.85559469,0.00010997,2]
[347847790,1736155838158,-500.0,0.00010997,2]
[347847791,1736155838170,-500.0,0.00010997,2]
[347847793,1736155838183,-430.14440531,0.00010997,2]
[347847794,1736155838198,-69.85559469,0.00010997,2]
[347847795,1736155838210,-500.0,0.00010997,2]
[347847796,1736155838222,-500.0,0.00010997,2]
[347847797,1736155838234,-500.0,0.00010997,2]
[347847798,1736155838245,-500.0,0.00010997,2]
[347847799,1736155838256,-500.0,0.00010997,2]
[347847800,1736155838265,-500.0,0.00010997,2]
[347847801,1736155838277,-500.0,0.00010997,2]
[347847802,1736155838290,-500.0,0.00010997,2]
[347847803,1736155838302,-498.24832176,0.00010997,2]
[347847804,1736155838318,-1.75167824,0.00010997,2]
[347847805,1736155838330,-500.0,0.00010997,2]
[347847806,1736155838343,-500.0,0.00010997,2]
[347847807,1736155838355,-500.0,0.00010997,2]
[347847808,1736155838367,-500.0,0.00010997,2]
[347847809,1736155838379,-579.34081728,0.00010997,2]
[347847810,1736155838391,-500.0,0.00010997,2]
[347847811,1736155838404,-500.0,0.00010997,2]
[347847812,1736155838417,-500.0,0.00010997,2]
[347847813,1736155838428,-500.0,0.00010997,2]
[347847814,1736155838440,-500.0,0.00010997,2]
[347847815,1736155838452,-500.0,0.00010997,2]
[347847816,1736155838464,-500.0,0.00010997,2]
[347847817,1736155838478,-581.03,0.00010997,2]
[347847818,1736155838489,-500.0,0.00010997,2]
[347847819,1736155838500,-500.0,0.00010997,2]
[347847820,1736155838510,-500.0,0.00010997,2]
[347847821,1736155838520,-500.0,0.00010997,2]
[347847822,1736155838531,-500.0,0.00010997,2]
[347847823,1736155838544,-500.0,0.00010997,2]
[347847824,1736155838559,-500.0,0.00010997,2]
[347847825,1736155838569,-500.0,0.00010997,2]
[347847826,1736155838579,-500.53499597,0.00010997,2]
[347847827,1736155838591,-500.0,0.00010997,2]
[347847828,1736155838601,-500.0,0.00010997,2]
[347847829,1736155838614,-500.0,0.00010997,2]
[347847830,1736155838627,-500.0,0.00010997,2]
[347847831,1736155838639,-500.0,0.00010997,2]
[347847832,1736155838649,-500.0,0.00010997,2]
[347847833,1736155838660,-500.0,0.00010997,2]
[347847834,1736155838671,-500.0,0.00010997,2]
[347847835,1736155838681,-500.0,0.00010997,2]
[347847836,1736155838695,-500.0,0.00010997,2]
[347847837,1736155838705,-500.0,0.00010997,2]
[347847838,1736155838716,-500.0,0.00010997,2]
[347847839,1736155838727,-500.0,0.00010997,2]
[347847840,1736155838738,-500.0,0.00010997,2]
[347847841,1736155838750,-500.0,0.00010997,2]
[347847842,1736155838761,-250.27561508,0.00010997,2]
[347847843,1736155838772,-500.0,0.00010997,2]
[347847844,1736155838784,-500.0,0.00010997,2]
[347847845,1736155838795,-500.0,0.00010997,2]
[347847846,1736155838808,-500.0,0.00010997,2]
[347847847,1736155838819,-500.0,0.00010997,2]
[347847848,1736155838830,-500.0,0.00010997,2]
[347847849,1736155838841,-500.0,0.00010997,2]
[347847850,1736155838852,-500.0,0.00010997,2]
[347847851,1736155838863,-500.0,0.00010997,2]
[347847852,1736155838874,-500.0,0.00010997,2]
[347847853,1736155838885,-500.0,0.00010997,2]
[347847854,1736155838897,-500.0,0.00010997,2]
[347847855,1736155838908,-500.0,0.00010997,2]
[347847856,1736155838920,-500.0,0.00010997,2]
[347847857,1736155838931,-500.0,0.00010997,2]
[347847858,1736155838942,-500.0,0.00010997,2]
[347847859,1736155838953,-500.0,0.00010997,2]
[347847860,1736155838964,-204.0762459,0.00010997,2]
[347847861,1736155838974,-500.0,0.00010997,2]
[347847862,1736155838985,-500.0,0.00010997,2]
[347847863,1736155838997,-500.0,0.00010997,2]
[347847864,1736155839008,-500.0,0.00010997,2]
[347847865,1736155839019,-500.0,0.00010997,2]
[347847866,1736155839030,-500.0,0.00010997,2]
[347847867,1736155839042,-500.0,0.00010997,2]
[347847868,1736155839053,-500.0,0.00010997,2]
[347847869,1736155839065,-500.89996807,0.00010997,2]
[347847870,1736155839078,-500.0,0.00010997,2]
[347847871,1736155839090,-500.0,0.00010997,2]
[347847872,1736155839101,-500.0,0.00010997,2]
[347847873,1736155839112,-500.0,0.00010997,2]
[347847874,1736155839124,-503.26677158,0.00010997,2]
[347847875,1736155839135,-591.1,0.00010997,2]
[347847876,1736155839146,-500.0,0.00010997,2]
[347847877,1736155839160,-500.0,0.00010997,2]
[347847878,1736155839172,-500.0,0.00010997,2]
[347847879,1736155839183,-500.0,0.00010997,2]
[347847880,1736155839194,-500.0,0.00010997,2]
[347847881,1736155839206,-500.0,0.00010997,2]
[347847882,1736155839217,-500.39673441,0.00010997,2]
[347847883,1736155839228,-500.0,0.00010997,2]
[347847884,1736155839239,-500.0,0.00010997,2]
[347847885,1736155839251,-500.0,0.00010997,2]
[347847886,1736155839262,-500.0,0.00010997,2]
[347847887,1736155839273,-500.0,0.00010997,2]
[347847888,1736155839285,-500.0,0.00010997,2]
[347847889,1736155839297,-500.0,0.00010997,2]
[347847890,1736155839309,-586.05,0.00010997,2]
[347847891,1736155839320,-500.0,0.00010997,2]
[347847892,1736155839331,-500.0,0.00010997,2]
[347847893,1736155839342,-1106.578467,0.00010997,2]
[347847894,1736155839353,-500.0,0.00010997,2]
[347847895,1736155839364,-500.0,0.00010997,2]
[347847896,1736155839376,-500.0,0.00010997,2]
[347847897,1736155839387,-500.0,0.00010997,2]
[347847898,1736155839399,-158.201752,0.00010997,2]
[347847899,1736155839412,-500.0,0.00010997,2]
[347847900,1736155839423,-500.0,0.00010997,2]
[347847901,1736155839435,-500.0,0.00010997,2]
[347847902,1736155839447,-156.262829,0.00010997,2]
[347847903,1736155839458,-500.0,0.00010997,2]
[347847904,1736155839470,-500.0,0.00010997,2]
[347847905,1736155839482,-500.0,0.00010997,2]
[347847906,1736155839493,-500.0,0.00010997,2]
[347847907,1736155839505,-201.12310732,0.00010997,2]
[347847908,1736155839517,-500.0,0.00010997,2]
[347847909,1736155839529,-500.0,0.00010997,2]
[347847910,1736155839541,-428.78873616,0.00010997,2]
[347847911,1736155839553,-500.0,0.00010997,2]
[347847912,1736155839564,-1197.475461,0.00010997,2]
[347847913,1736155839576,-500.59616282,0.00010997,2]
[347847914,1736155839588,-500.0,0.00010997,2]
[347847915,1736155839600,-2383.69,0.00010997,2]
[347847916,1736155839611,-500.0,0.00010997,2]
[347847917,1736155839624,-573.47979132,0.00010997,2]
[347847918,1736155839636,-500.0,0.00010997,2]
[347847919,1736155839647,-500.0,0.00010997,2]
[347847920,1736155839659,-500.0,0.00010997,2]
[347847921,1736155839670,-500.0,0.00010997,2]
[347847922,1736155839681,-501.52181217,0.00010997,2]
[347847923,1736155839692,-500.0,0.00010997,2]
[347847924,1736155839704,-501.61949749,0.00010997,2]
[347847925,1736155839715,-500.0,0.00010997,2]
[347847926,1736155839727,-500.0,0.00010997,2]
[347847927,1736155839739,-500.0,0.00010997,2]
[347847928,1736155839751,-500.0,0.00010997,2]
[347847929,1736155839764,-500.0,0.00010997,2]
[347847930,1736155839776,-500.0,0.00010997,2]
[347847931,1736155839789,-511.9536194,0.00010997,2]
[347847932,1736155839801,-500.0,0.00010997,2]
[347847933,1736155839812,-500.0,0.00010997,2]
[347847934,1736155839824,-500.0,0.00010997,2]
[347847935,1736155839846,-500.0,0.00010997,2]
[347847936,1736155839864,-501.93262911,0.00010997,2]
[347847937,1736155839879,-501.07823074,0.00010997,2]
[347847938,1736155839894,-500.0,0.00010997,2]
[347847939,1736155839907,-500.0,0.00010997,2]
[347847940,1736155839921,-500.0,0.00010997,2]
[347847941,1736155839934,-500.0,0.00010997,2]
[347847942,1736155839947,-622.24549681,0.00010997,2]
[347847943,1736155839960,-501.27253516,0.00010997,2]
[347847944,1736155839973,-500.0,0.00010997,2]
[347847945,1736155839986,-500.0,0.00010997,2]
[347847946,1736155839998,-500.0,0.00010997,2]
[347847947,1736155840012,-500.0,0.00010997,2]
[347847948,1736155840025,-500.0,0.00010997,2]
[347847949,1736155840039,-500.0,0.00010997,2]
[347847950,1736155840052,-501.40562092,0.00010997,2]
[347847951,1736155840065,-500.0,0.00010997,2]
[347847952,1736155840080,-500.0,0.00010997,2]
[347847953,1736155840091,-500.0,0.00010997,2]
[347847954,1736155840105,-500.0,0.00010997,2]
[347847955,1736155840116,-500.66492092,0.00010997,2]
[347847956,1736155840126,-500.0,0.00010997,2]
[347847957,1736155840136,-500.0,0.00010997,2]
[347847958,1736155840146,-500.0,0.00010997,2]
[347847959,1736155840158,-500.0,0.00010997,2]
[347847960,1736155840168,-500.0,0.00010997,2]
[347847961,1736155840178,-500.0,0.00010997,2]
[347847962,1736155840188,-500.0,0.00010997,2]
[347847963,1736155840530,-293.75779693,0.00010997,2]
[347847964,1736155840554,-500.0,0.00010997,2]
[347847965,1736155840563,-500.50493923,0.00010997,2]
[347847966,1736155840573,-2070.28,0.00010997,2]
[347847967,1736155840583,-500.0,0.00010997,2]
[347847968,1736155840592,-543.97551529,0.00010997,2]
[347847969,1736155840602,-500.0,0.00010997,2]
[347847970,1736155840611,-2158.75,0.00010997,2]
[347847971,1736155840622,-500.0,0.00010997,2]
[347847972,1736155840631,-500.0,0.00010997,2]
[347847973,1736155840641,-500.0,0.00010997,2]
[347847974,1736155840651,-500.0,0.00010997,2]
[347847975,1736155840660,-500.0,0.00010997,2]
[347847976,1736155840669,-1256.81,0.00010997,2]
[347847977,1736155840678,-500.0,0.00010997,2]
[347847978,1736155840688,-500.0,0.00010997,2]
[347847979,1736155840698,-500.0,0.00010997,2]
[347847980,1736155840707,-500.0,0.00010997,2]
[347847981,1736155840717,-501.95182651,0.00010997,2]
[347847982,1736155840727,-500.0,0.00010997,2]
[347847983,1736155840736,-500.0,0.00010997,2]
[347847984,1736155840746,-500.0,0.00010997,2]
[347847985,1736155840755,-500.0,0.00010997,2]
[347847986,1736155840764,-877.06,0.00010997,2]
[347847987,1736155840774,-500.0,0.00010997,2]
[347847988,1736155840782,-500.0,0.00010997,2]
[347847989,1736155840792,-500.0,0.00010997,2]
[347847990,1736155840802,-500.0,0.00010997,2]
[347847991,1736155840812,-500.0,0.00010997,2]
[347847992,1736155840822,-2008.12,0.00010997,2]
[347847993,1736155840831,-500.0,0.00010997,2]
[347847994,1736155840840,-500.0,0.00010997,2]
[347847995,1736155840850,-500.0,0.00010997,2]
[347847996,1736155840859,-500.0,0.00010997,2]
[347847997,1736155840869,-500.0,0.00010997,2]
[347847998,1736155840878,-500.0,0.00010997,2]
[347847999,1736155840888,-500.0,0.00010997,2]
[347848000,1736155840898,-500.0,0.00010997,2]
[347848001,1736155840908,-432.32344798,0.00010997,2]
[347848002,1736155840917,-500.0,0.00010997,2]
[347848003,1736155840927,-500.0,0.00010997,2]
[347848004,1736155840936,-500.0,0.00010997,2]
[347848005,1736155840945,-500.0,0.00010997,2]
[347848006,1736155840954,-500.0,0.00010997,2]
[347848007,1736155840964,-2574.24,0.00010997,2]
[347848008,1736155840973,-500.0,0.00010997,2]
[347848009,1736155840982,-500.0,0.00010997,2]
[347848010,1736155840992,-500.0,0.00010997,2]
[347848011,1736155841001,-500.0,0.00010997,2]
[347848012,1736155841011,-500.0,0.00010997,2]
[347848013,1736155841021,-500.0,0.00010997,2]
[347848014,1736155841030,-500.0,0.00010997,2]
[347848015,1736155841039,-501.96576664,0.00010997,2]
[347848016,1736155841049,-500.0,0.00010997,2]
[347848017,1736155841058,-500.0,0.00010997,2]
[347848018,1736155841068,-515.58088047,0.00010997,2]
[347848019,1736155841081,-500.70265992,0.00010997,2]
[347848020,1736155841090,-500.0,0.00010997,2]
[347848021,1736155841099,-500.0,0.00010997,2]
[347848022,1736155841108,-501.5042057,0.00010997,2]
[347848023,1736155841119,-500.79741597,0.00010997,2]
[347848024,1736155841128,-500.0,0.00010997,2]
[347848025,1736155841138,-500.0,0.00010997,2]
[347848026,1736155841147,-500.0,0.00010997,2]
[347848027,1736155841158,-500.0,0.00010997,2]
[347848028,1736155841167,-500.0,0.00010997,2]
[347848029,1736155841177,-501.4824625,0.00010997,2]
[347848030,1736155841186,-500.0,0.00010997,2]
[347848031,1736155841195,-500.0,0.00010997,2]
[347848032,1736155841205,-500.0,0.00010997,2]
[347848033,1736155841214,-500.0,0.00010997,2]
[347848034,1736155841224,-500.0,0.00010997,2]
[347848035,1736155841233,-500.0,0.00010997,2]
[347848036,1736155841243,-583.24,0.00010997,2]
[347848037,1736155841251,-500.0,0.00010997,2]
[347848038,1736155841261,-500.0,0.00010997,2]
[347848039,1736155841271,-500.0,0.00010997,2]
[347848040,1736155841280,-502.64803795,0.00010997,2]
[347848041,1736155841289,-500.75397042,0.00010997,2]
[347848042,1736155841299,-500.56218349,0.00010997,2]
[347848043,1736155841308,-500.0,0.00010997,2]
[347848044,1736155841318,-526.66017987,0.00010997,2]
[347848045,1736155841327,-501.96363788,0.00010997,2]
[347848046,1736155841336,-500.0,0.00010997,2]
[347848047,1736155841345,-500.0,0.00010997,2]
[347848048,1736155841354,-555.29,0.00010997,2]
[347848049,1736155841364,-500.0,0.00010997,2]
[347848050,1736155841373,-500.0,0.00010997,2]
[347848051,1736155841382,-500.0,0.00010997,2]
[347848052,1736155841391,-591.37111634,0.00010997,2]
[347848053,1736155841401,-500.0,0.00010997,2]
[347848054,1736155841410,-500.0,0.00010997,2]
[347848055,1736155841420,-500.0,0.00010997,2]
[347848056,1736155841429,-500.0,0.00010997,2]
[347848057,1736155841438,-500.0,0.00010997,2]
[347848058,1736155841448,-500.0,0.00010997,2]
[347848059,1736155841458,-500.0,0.00010997,2]
[347848060,1736155841467,-580.19098428,0.00010997,2]
[347848061,1736155841476,-500.0,0.00010997,2]
[347848062,1736155841485,-500.0,0.00010997,2]
[347848063,1736155841494,-500.0,0.00010997,2]
[347848064,1736155841503,-500.0,0.00010997,2]
[347848065,1736155841512,-500.0,0.00010997,2]
[347848066,1736155841521,-500.95806203,0.00010997,2]
[347848067,1736155841530,-500.0,0.00010997,2]
[347848068,1736155841539,-500.0,0.00010997,2]
[347848069,1736155841548,-500.0,0.00010997,2]
[347848070,1736155841558,-500.0,0.00010997,2]
[347848071,1736155841567,-500.0,0.00010997,2]
[347848072,1736155841576,-500.0,0.00010997,2]
[347848073,1736155841586,-500.0,0.00010997,2]
[347848074,1736155841595,-500.0,0.00010997,2]
[347848075,1736155841604,-500.0,0.00010997,2]
[347848076,1736155841613,-500.0,0.00010997,2]
[347848077,1736155841623,-500.0,0.00010997,2]
[347848078,1736155841632,-500.0,0.00010997,2]
[347848079,1736155841642,-500.0,0.00010997,2]
[347848080,1736155841652,-500.0,0.00010997,2]
[347848081,1736155841661,-500.0,0.00010997,2]
[347848082,1736155841671,-500.0,0.00010997,2]
[347848083,1736155841680,-500.0,0.00010997,2]
[347848084,1736155841689,-500.0,0.00010997,2]
[347848085,1736155841700,-500.0,0.00010997,2]
[347848086,1736155841709,-500.0,0.00010997,2]
[347848087,1736155841718,-500.0,0.00010997,2]
[347848088,1736155841728,-500.0,0.00010997,2]
[347848089,1736155841737,-500.0,0.00010997,2]
[347848090,1736155841747,-500.0,0.00010997,2]
[347848091,1736155841757,-490.99338322,0.00010997,2]
[347848092,1736155841767,-500.0,0.00010997,2]
[347848093,1736155841777,-501.49641107,0.00010997,2]
[347848094,1736155841788,-524.22610264,0.00010997,2]
[347848095,1736155841801,-500.84177779,0.00010997,2]
[347848096,1736155841811,-501.20702977,0.00010997,2]
[347848097,1736155841820,-500.0,0.00010997,2]
[347848098,1736155841830,-500.68493499,0.00010997,2]
[347848099,1736155841839,-7500.0,0.00010997,2]
[347848100,1736155841849,-500.0,0.00010997,2]
[347848101,1736155841858,-500.0,0.00010997,2]
[347848102,1736155841867,-579.35161067,0.00010997,2]
[347848103,1736155841877,-500.0,0.00010997,2]
[347848104,1736155841887,-527.2596616,0.00010997,2]
[347848105,1736155841896,-500.0,0.00010997,2]
[347848106,1736155841905,-500.0,0.00010997,2]
[347848107,1736155841915,-522.02,0.00010997,2]
[347848108,1736155841924,-501.15167688,0.00010997,2]
[347848109,1736155841934,-500.0,0.00010997,2]
[347848110,1736155841943,-500.0,0.00010997,2]
[347848111,1736155841953,-500.0,0.00010997,2]
[347848112,1736155841963,-500.0,0.00010997,2]
[347848113,1736155841972,-500.0,0.00010997,2]
[347848114,1736155841982,-500.0,0.00010997,2]
[347848115,1736155841991,-491.80549992,0.00010997,2]
[347848116,1736155842001,-500.0,0.00010997,2]
[347848117,1736155842011,-500.0,0.00010997,2]
[347848118,1736155842020,-500.0,0.00010997,2]
[347848119,1736155842030,-192720.02302842,0.00010998,2]
[347848120,1736155842040,-9120.82940141,0.00010998,2]
[347848121,1736155842049,-17430.27648386,0.00010998,2]
[347848122,1736155842059,-24048.06546819,0.00010998,2]
[347848123,1736155842079,-3832.10182229,0.00010998,2]
[347848124,1736155842108,-436.38132416,0.00010998,2]
[347848125,1736155842121,-7231.1603346,0.00010998,2]
[347848126,1736155842132,-3699.75031725,0.00010998,2]
[347848127,1736155842154,-33547.69921048,0.00010998,2]
[347848128,1736155842166,-613.29313323,0.00010998,2]
[347848129,1736155842178,-820.86508041,0.00010998,2]
[347848130,1736155842246,-842.24655568,0.00010998,2]
[347848131,1736155842257,-982.2799142,0.00010998,2]
[347848132,1736155842273,-1897.0,0.00010998,2]
[347848133,1736155842287,-35286.48543165,0.00010998,2]
[347848134,1736155842299,-500.0,0.00010998,2]
[347848135,1736155842308,-500.0,0.00010998,2]
[347848136,1736155842318,-500.0,0.00010998,2]
[347848137,1736155842327,-612.33952226,0.00010998,2]
[347848138,1736155842337,-7500.0,0.00010998,2]
[347848139,1736155842347,-7500.0,0.00010998,2]
[347848140,1736155842356,-7500.0,0.00010998,2]
[347848141,1736155842366,-7500.0,0.00010998,2]
[347848142,1736155842375,-7500.0,0.00010998,2]
[347848143,1736155842386,-7500.0,0.00010998,2]
[347848144,1736155842395,-7500.0,0.00010998,2]
[347848145,1736155842405,-7500.0,0.00010998,2]